bitfinex/quotes_SOLUSD_20250305
["timestamp","ask_amount","ask_price","bid_price","bid_amount"]
[1741154046899,13.23407261,142.62,142.6,0.033]
[1741154048201,13.26407261,142.62,142.6,0.033]
[1741154049001,0.03,142.62,142.6,0.033]
[1741154049186,13.26407261,142.62,142.6,0.033]
[1741154049680,13.26407261,142.62,142.6,2.033]
[1741154049999,0.03,142.62,142.6,2.033]
[1741154050209,0.03,142.62,142.61,2.0]
[1741154051404,0.03,142.62,142.61,9.0121]
[1741154052488,0.03,142.62,142.61,47.49572147]
[1741154053088,81.8,142.66,142.61,49.09742147]
[1741154053409,81.8,142.66,142.65,2.0]
[1741154053710,95.03407261,142.69,142.65,20.64964886]
[1741154054006,95.03407261,142.69,142.67,2.0]
[1741154054704,98.59601481,142.69,142.66,2.0]
[1741154055005,13.23407261,142.67,142.64,2.0]
[1741154055301,13.23407261,142.67,142.63,2.0]
[1741154055697,13.23407261,142.66,142.63,2.0]
[1741154056013,13.23407261,142.64,142.61,10.2016]
[1741154056312,95.03407261,142.65,142.62,2.0]
[1741154056611,95.03407261,142.65,142.63,2.0]
[1741154056904,81.8,142.65,142.64,2.0]
[1741154058710,95.03407261,142.68,142.64,20.64964886]
[1741154058885,81.8,142.68,142.67,2.0]
[1741154060886,81.8,142.68,142.66,2.0]
[1741154061096,81.8,142.68,142.67,2.0]
[1741154064482,81.8,142.68,142.67,27.65874886]
[1741154064811,0.03,142.71,142.7,2.0]
[1741154065111,0.03,142.71,142.7,20.64964886]
[1741154073597,0.03,142.71,142.7,27.65734886]
[1741154074218,0.03,142.71,142.7,40.89142147]
[1741154075619,0.03,142.71,142.7,42.47362147]
[1741154076697,0.03,142.71,142.7,49.26834461]
[1741154077232,0.03,142.75,142.74,2.0]
[1741154077393,0.03,142.75,142.74,9.0057]
[1741154077593,0.03,142.75,142.74,27.65534886]
[1741154079621,0.03,142.75,142.74,42.55182147]
[1741154080296,0.03,142.75,142.74,42.83614461]
[1741154080496,0.03,142.75,142.74,49.06744461]
[1741154081717,0.03,142.75,142.74,41.77742147]
[1741154081899,0.03,142.75,142.74,28.54334886]
[1741154082716,0.03,142.75,142.74,22.31204886]
[1741154083799,0.03,142.75,142.74,2.0]
[1741154087627,0.03,142.75,142.74,20.64964886]
[1741154090827,0.03,142.75,142.74,27.65534886]
[1741154092034,0.03,142.75,142.74,40.88942147]
[1741154092721,0.03,142.75,142.74,27.65534886]
[1741154092919,0.03,142.75,142.74,20.64964886]
[1741154098140,0.03,142.75,142.74,33.88372147]
[1741154098344,0.03,142.75,142.74,40.88942147]
[1741154099819,0.03,142.75,142.74,42.42662147]
[1741154100341,80.91214961,142.79,142.78,2.0]
[1741154100511,0.03,142.8,142.79,2.0]
[1741154102848,0.03,142.8,142.79,20.64964886]
[1741154104525,0.03,142.8,142.79,27.65284886]
[1741154104940,0.03,142.8,142.79,20.64964886]
[1741154106629,0.03,142.8,142.79,27.65284886]
[1741154106952,0.03,142.8,142.79,42.68454461]
[1741154108961,0.03,142.86,142.85,20.64964886]
[1741154110629,0.03,142.86,142.85,27.64994886]
[1741154111360,0.03,142.86,142.85,20.64964886]
[1741154112260,0.03,142.86,142.85,27.64994886]
[1741154112626,0.03,142.86,142.85,40.88402147]
[1741154114348,0.03,142.86,142.85,33.88372147]
[1741154114528,0.03,142.86,142.85,20.64964886]
[1741154115154,13.26407261,142.86,142.84,2.0]
[1741154115332,13.26407261,142.86,142.85,2.0]
[1741154115748,0.03,142.86,142.85,2.0]
[1741154117026,0.28432314,142.78,142.54,49.88428706]
[1741154117274,13.23407261,142.64,142.56,13.23407261]
[1741154117754,13.23407261,142.64,142.59,10.82097083]
[1741154117933,0.28432314,142.69,142.6,18.68264886]
[1741154118133,13.23407261,142.66,142.6,0.033]
[1741154118648,13.23407261,142.65,142.6,18.68264886]
[1741154119058,13.23407261,142.66,142.6,0.033]
[1741154119655,13.23407261,142.66,142.6,18.68264886]
[1741154120028,13.23407261,142.66,142.63,18.64964886]
[1741154120454,13.23407261,142.66,142.62,0.033]
[1741154120657,20.70922335,142.66,142.62,0.033]
[1741154121158,0.03,142.64,142.62,0.033]
[1741154123456,0.03,142.64,142.63,330.64964886]
[1741154123959,0.03,142.64,142.63,18.64964886]
[1741154127059,0.03,142.64,142.63,330.64964886]
[1741154128260,0.03,142.64,142.63,330.79181043]
[1741154128472,0.03,142.64,142.63,365.67449535]
[1741154129874,0.03,142.64,142.63,358.66339535]
[1741154130550,0.03,142.64,142.63,365.67449535]
[1741154133171,0.03,142.64,142.63,576.18749535]
[1741154133670,20.70922335,142.73,142.67,0.14216157]
[1741154133842,102.50922335,142.74,142.67,39.50103378]
[1741154134352,102.50922335,142.74,142.69,18.64964886]
[1741154135374,1.6109,142.79,142.69,18.64964886]
[1741154135375,3.50115817,142.77,142.73,61.4184467]
[1741154135540,0.03,142.79,142.75,20.70922335]
[1741154135742,0.03,142.79,142.74,26.14922335]
[1741154136358,0.03,142.79,142.74,5.44]
[1741154136766,0.03,142.79,142.75,18.64964886]
[1741154137160,0.03,142.79,142.75,39.35887221]
[1741154138274,0.03,142.79,142.75,18.64964886]
[1741154139061,0.03,142.79,142.75,39.35887221]
[1741154139874,0.03,142.79,142.75,46.36387221]
[1741154142782,0.03,142.79,142.75,358.36387221]
[1741154144188,20.70922335,142.78,142.73,7.0061]
[1741154144374,102.50922335,142.77,142.71,7.0072]
[1741154144562,102.50922335,142.77,142.72,18.64964886]
[1741154145686,81.8,142.77,142.72,46.36527221]
[1741154145891,20.73922335,142.79,142.72,25.65604886]
[1741154146089,0.03,142.79,142.75,18.64964886]
[1741154146595,0.03,142.79,142.73,20.70922335]
[1741154146891,0.03,142.79,142.74,18.64964886]
[1741154147089,0.03,142.79,142.75,7.0052]
[1741154147269,20.73922335,142.79,142.74,18.64964886]
[1741154147468,20.70922335,142.78,142.74,25.65524886]
[1741154147996,20.70922335,142.78,142.73,25.65564886]
[1741154148288,20.70922335,142.77,142.73,7.006]
[1741154148496,20.70922335,142.75,142.71,7.0072]
[1741154148877,20.70922335,142.74,142.68,7.0086]
[1741154149078,81.8,142.78,142.71,20.70922335]
[1741154149389,81.8,142.78,142.74,18.64964886]
[1741154151197,81.8,142.78,142.75,7.0052]
[1741154151882,81.8,142.78,142.74,25.65514886]
[1741154153089,81.8,142.78,142.72,20.70922335]
[1741154153288,81.8,142.78,142.73,7.0062]
[1741154153483,102.50922335,142.78,142.72,25.65624886]
[1741154153791,20.70922335,142.77,142.72,25.65624886]
[1741154154198,81.8,142.76,142.7,27.71642335]
[1741154154500,102.50922335,142.76,142.7,7.0072]
[1741154155197,81.8,142.76,142.71,18.64964886]
[1741154155387,81.8,142.76,142.71,46.36597221]
[1741154159809,81.8,142.76,142.71,39.35887221]
[1741154160276,81.8,142.76,142.71,18.64964886]
[1741154160703,88.8048,142.76,142.71,18.64964886]
[1741154161403,81.8,142.76,142.71,46.36587221]
[1741154161604,81.8,142.76,142.72,20.70922335]
[1741154162177,81.8,142.76,142.71,46.36587221]
[1741154162700,109.51392335,142.76,142.69,312.033]
[1741154162877,102.79354649,142.75,142.69,0.033]
[1741154163085,20.70922335,142.74,142.69,0.033]
[1741154163284,20.70922335,142.73,142.69,0.033]
[1741154163498,81.8,142.72,142.69,0.033]
[1741154165013,81.8,142.72,142.69,20.74222335]
[1741154165192,81.8,142.72,142.7,20.70922335]
[1741154165509,81.8,142.72,142.7,18.64964886]
[1741154166311,81.8,142.72,142.69,0.033]
[1741154167393,7.0052,142.75,142.69,0.033]
[1741154167603,20.70922335,142.74,142.69,0.033]
[1741154167792,20.70922335,142.74,142.69,18.68264886]
[1741154168291,20.70922335,142.74,142.69,0.033]
[1741154168691,20.70922335,142.74,142.69,18.68264886]
[1741154168887,102.50922335,142.74,142.69,0.033]
[1741154169098,20.70922335,142.73,142.69,0.033]
[1741154170817,27.71552335,142.73,142.69,0.033]
[1741154171818,20.70922335,142.72,142.69,0.033]
[1741154172212,20.70922335,142.71,142.69,0.033]
[1741154172717,109.51692335,142.7,142.69,0.033]
[1741154173415,28.00124649,142.7,142.69,0.033]
[1741154175917,27.71692335,142.7,142.69,0.033]
[1741154176126,3.46244712,142.73,142.69,0.033]
[1741154176420,20.70922335,142.71,142.69,0.033]
[1741154176714,20.99354649,142.7,142.69,0.033]
[1741154177515,102.79354649,142.7,142.69,0.033]
[1741154178024,109.80124649,142.7,142.69,0.033]
[1741154178204,102.79354649,142.7,142.69,0.033]
[1741154180127,102.50922335,142.7,142.69,0.033]
[1741154180417,109.80124649,142.7,142.69,0.033]
[1741154181606,28.00124649,142.7,142.69,0.033]
[1741154183703,20.0,142.67,142.63,0.033]
[1741154184015,20.70922335,142.64,142.63,0.033]
[1741154185106,27.71982335,142.64,142.63,0.033]
[1741154186020,28.00414649,142.64,142.63,0.033]
[1741154186217,27.71982335,142.64,142.63,0.033]
[1741154190227,28.00414649,142.64,142.63,0.033]
[1741154190730,28.00414649,142.64,142.63,0.0001]
[1741154196542,28.03414649,142.64,142.63,0.0001]
[1741154199040,46.68379535,142.64,142.63,0.0001]
[1741154200545,39.24112364,142.64,142.63,0.0001]
[1741154201645,20.59147478,142.64,142.63,0.0001]
[1741154202534,7.0406,142.64,142.63,0.0001]
[1741154202737,20.30715164,142.64,142.63,0.0001]
[1741154202938,20.59147478,142.64,142.63,0.0001]
[1741154203729,13.29655164,142.64,142.63,0.0001]
[1741154204222,0.03,142.64,142.63,0.0001]
[1741154206949,20.74275206,142.64,142.63,0.0001]
[1741154208361,0.03,142.64,142.63,0.0001]
[1741154209417,81.8,142.66,142.63,20.71285206]
[1741154209632,81.8,142.66,142.64,18.64964886]
[1741154209829,81.8,142.66,142.63,0.0001]
[1741154210442,81.8,142.66,142.64,18.64964886]
[1741154211846,81.8,142.66,142.65,1.6388]
[1741154214050,81.8,142.66,142.65,8.6489]
[1741154214459,102.51275206,142.69,142.65,1.6388]
[1741154214760,20.71275206,142.68,142.65,1.6388]
[1741154216248,102.51275206,142.69,142.65,8.6489]
[1741154219459,102.54275206,142.69,142.65,8.6489]
[1741154221560,20.74275206,142.69,142.66,18.64964886]
[1741154221856,20.71275206,142.68,142.65,1.6388]
[1741154222052,20.71275206,142.66,142.65,1.6388]
[1741154222436,20.71275206,142.67,142.65,1.6388]
[1741154223057,20.71275206,142.68,142.65,1.6388]
[1741154223258,102.51275206,142.68,142.65,1.6388]
[1741154223557,20.71275206,142.67,142.65,1.6388]
[1741154223858,20.71275206,142.66,142.65,1.6388]
[1741154224054,20.71275206,142.66,142.63,6.0967]
[1741154224359,20.71275206,142.65,142.63,6.0967]
[1741154226158,102.51275206,142.66,142.63,6.0967]
[1741154226367,88.8099,142.66,142.63,6.0967]
[1741154227383,81.8,142.66,142.63,6.0967]
[1741154228260,81.8,142.66,142.64,18.64964886]
[1741154229140,81.8,142.66,142.65,14.95429443]
[1741154229345,0.03,142.69,142.66,18.64964886]
[1741154229558,0.03,142.69,142.66,31.90204329]
[1741154230245,0.03,142.69,142.68,18.64964886]
[1741154230560,0.03,142.69,142.68,31.90204329]
[1741154231582,0.03,142.69,142.68,38.53174329]
[1741154232574,0.03,142.69,142.68,52.97018388]
[1741154232779,0.03,142.74,142.68,54.68558388]
[1741154232941,0.03,142.74,142.72,18.64964886]
[1741154233484,0.03,142.74,142.72,20.40924886]
[1741154235173,0.03,142.74,142.69,20.68223502]
[1741154235354,20.71223502,142.74,142.69,1.6401]
[1741154235750,20.68223502,142.73,142.7,18.64964886]
[1741154235958,20.68223502,142.73,142.69,1.6401]
[1741154236260,7.0065,142.73,142.69,1.6401]
[1741154236575,7.0065,142.73,142.7,18.64964886]
[1741154237685,27.71803502,142.74,142.7,18.64964886]
[1741154237866,0.03,142.74,142.72,18.64964886]
[1741154240486,0.03,142.74,142.72,25.65624886]
[1741154240882,0.03,142.74,142.72,18.64964886]
[1741154241270,0.03,142.74,142.72,25.65614886]
[1741154243488,0.03,142.74,142.73,20.68223502]
[1741154243685,0.03,142.74,142.73,39.33188388]
[1741154243989,0.03,142.74,142.73,47.47348388]
[1741154244289,0.03,142.74,142.73,26.79124886]
[1741154249565,0.03,142.74,142.73,18.64964886]
[1741154249766,0.03,142.74,142.7,20.68223502]
[1741154250490,0.03,142.74,142.71,18.64964886]
[1741154252687,0.03,142.74,142.72,20.68223502]
[1741154252895,0.03,142.74,142.71,39.33188388]
[1741154253085,0.03,142.74,142.69,1.753]
[1741154253086,20.68223502,142.73,142.69,1.753]
[1741154253287,20.68223502,142.72,142.69,0.033]
[1741154253582,20.68223502,142.71,142.69,0.033]
[1741154253784,20.68223502,142.72,142.69,0.033]
[1741154253995,0.03,142.74,142.69,0.033]
[1741154253996,20.68223502,142.71,142.69,0.033]
[1741154254367,20.68223502,142.7,142.69,0.033]
[1741154254566,27.68993502,142.7,142.69,0.033]
[1741154255572,27.97425816,142.7,142.69,0.033]
[1741154256996,27.68993502,142.7,142.69,0.033]
[1741154257373,7.0072,142.71,142.69,0.033]
[1741154257576,20.68223502,142.7,142.69,0.033]
[1741154258100,20.68223502,142.71,142.69,0.033]
[1741154259700,20.68223502,142.72,142.69,0.033]
[1741154260394,102.48223502,142.73,142.69,0.033]
[1741154261494,0.03,142.74,142.7,18.64964886]
[1741154262901,0.03,142.74,142.71,7.0072]
[1741154269103,0.03,142.74,142.7,46.33938388]
[1741154269300,20.71223502,142.74,142.69,13.2499]
[1741154269604,20.68223502,142.73,142.69,6.2419]
[1741154269908,27.68843502,142.73,142.69,6.2419]
[1741154270304,20.68223502,142.72,142.69,0.033]
[1741154270675,20.68223502,142.71,142.69,0.033]
[1741154270901,20.68223502,142.7,142.69,0.033]
[1741154272417,27.68993502,142.7,142.69,0.033]
[1741154273911,109.48993502,142.7,142.69,0.033]
[1741154274213,109.77425816,142.7,142.69,0.033]
[1741154274588,27.97425816,142.7,142.69,0.033]
[1741154275823,20.68223502,142.7,142.69,0.033]
[1741154276189,27.68953502,142.71,142.69,0.033]
[1741154276406,27.68933502,142.72,142.69,0.033]
[1741154277436,20.68223502,142.7,142.69,0.033]
[1741154277923,27.68993502,142.7,142.69,0.033]
[1741154280403,20.68223502,142.7,142.69,0.033]
[1741154280600,20.68223502,142.71,142.69,0.033]
[1741154280926,20.68223502,142.72,142.69,0.033]
[1741154282025,27.68943502,142.71,142.69,0.033]
[1741154282226,7.0072,142.71,142.69,0.033]
[1741154282444,27.68903502,142.72,142.69,0.033]
[1741154283625,20.68223502,142.7,142.69,0.033]
[1741154284000,20.96655816,142.7,142.69,0.033]
[1741154285724,27.97425816,142.7,142.69,0.033]
[1741154286909,0.28432314,142.69,142.63,0.0001]
[1741154287115,20.68223502,142.67,142.63,0.0001]
[1741154287432,20.68223502,142.66,142.63,0.0001]
[1741154287824,27.69213502,142.66,142.63,0.0001]
[1741154288034,7.0099,142.66,142.63,0.0001]
[1741154288734,102.48223502,142.68,142.63,0.0001]
[1741154288933,109.49103502,142.68,142.63,0.0001]
[1741154289728,7.0096,142.66,142.63,0.0001]
[1741154290124,27.69183502,142.66,142.63,0.0001]
[1741154290434,7.0096,142.66,142.63,0.0001]
[1741154291833,27.69153502,142.67,142.63,0.0001]
[1741154292633,20.26056378,142.67,142.63,0.0001]
[1741154294221,13.25126378,142.67,142.63,0.0001]
[1741154294427,102.06006378,142.68,142.63,0.0001]
[1741154295234,13.25126378,142.67,142.63,0.0001]
[1741154296035,20.26086378,142.67,142.63,0.0001]
[1741154299035,81.8,142.68,142.63,18.64974886]
[1741154299211,81.8,142.68,142.63,31.90101264]
[1741154300641,81.8,142.68,142.65,18.64964886]
[1741154303440,0.03,142.69,142.65,18.64964886]
[1741154303825,7.0383,142.69,142.65,18.64964886]
[1741154304835,0.03,142.69,142.64,7.0106]
[1741154305153,0.03,142.69,142.64,20.26186378]
[1741154308446,0.03,142.69,142.65,38.91091264]
[1741154312818,0.03,142.69,142.65,25.65964886]
[1741154313439,0.03,142.69,142.64,13.25126378]
[1741154313646,0.28432314,142.64,142.63,0.0001]
[1741154313831,33.53558692,142.64,142.63,0.0001]
[1741154314032,40.54618692,142.64,142.63,0.0001]
[1741154318144,40.26186378,142.64,142.63,0.0001]
[1741154322150,20.26186378,142.64,142.63,0.0001]
[1741154323046,13.25126378,142.65,142.63,0.0001]
[1741154323243,20.26156378,142.65,142.63,0.0001]
[1741154323741,7.0103,142.65,142.63,0.0001]
[1741154323948,88.8097,142.66,142.63,0.0001]
[1741154324135,81.8,142.66,142.63,0.0001]
[1741154324848,81.8,142.66,142.64,26.41424886]
[1741154325348,7.0087,142.68,142.64,26.41424886]
[1741154327050,20.25996378,142.68,142.64,26.41424886]
[1741154327248,13.25126378,142.66,142.64,1.6298]
[1741154327424,13.25126378,142.65,142.63,0.0001]
[1741154327931,95.33558692,142.64,142.63,0.0001]
[1741154329349,102.34618692,142.64,142.63,0.0001]
[1741154330450,102.06186378,142.64,142.63,0.0001]
[1741154330646,109.52662385,142.64,142.63,0.0001]
[1741154332650,109.81094699,142.64,142.63,0.0001]
[1741154333154,28.01094699,142.64,142.63,0.0001]
[1741154352580,20.55898787,142.64,142.63,0.0001]
[1741154356863,0.28432314,142.63,142.62,0.0001]
[1741154357065,13.54838787,142.63,142.62,0.0001]
[1741154358382,20.55948787,142.63,142.62,0.0001]
[1741154361382,22.55948787,142.63,142.62,0.0001]
[1741154361587,20.55948787,142.63,142.62,0.0001]
[1741154362789,20.58948787,142.63,142.62,0.0001]
[1741154363583,22.58948787,142.63,142.62,0.0001]
[1741154364083,22.58948787,142.63,142.57,7.8769]
[1741154364288,22.58948787,142.63,142.55,0.033]
[1741154364289,20.0,142.56,142.55,0.033]
[1741154364485,33.26406473,142.56,142.55,0.033]
[1741154366088,40.27856473,142.56,142.55,0.033]
[1741154366391,20.0,142.56,142.55,0.033]
[1741154366988,27.0145,142.56,142.55,0.033]
[1741154367579,40.27856473,142.56,142.55,0.033]
[1741154368079,20.0,142.56,142.55,0.033]
[1741154369300,20.27826473,142.57,142.55,0.033]
[1741154370373,13.26406473,142.57,142.55,0.033]
[1741154371496,33.26406473,142.56,142.55,0.033]
[1741154372595,40.27856473,142.56,142.55,0.033]
[1741154373098,40.56288787,142.56,142.55,0.033]
[1741154377187,40.27856473,142.56,142.55,0.033]
[1741154387185,53.05625892,142.59,142.55,0.033]
[1741154387391,95.06406473,142.61,142.56,7.9712]
[1741154387887,13.26406473,142.6,142.56,7.9712]
[1741154388206,13.26406473,142.59,142.56,7.9712]
[1741154389704,13.26406473,142.6,142.56,7.9712]
[1741154391612,13.26406473,142.59,142.56,7.9712]
[1741154393009,13.26406473,142.6,142.56,7.9712]
[1741154396912,13.26406473,142.59,142.56,7.9712]
[1741154397211,13.26406473,142.59,142.56,14.9857]
[1741154398417,88.8122,142.61,142.56,14.9857]
[1741154398609,13.26406473,142.59,142.56,14.9857]
[1741154400605,95.06406473,142.61,142.57,25.66354886]
[1741154400914,81.8,142.61,142.57,25.66354886]
[1741154401214,13.26406473,142.61,142.57,18.64964886]
[1741154401415,7.0418,142.62,142.57,18.64964886]
[1741154401416,13.07902311,142.6,142.57,18.64964886]
[1741154401615,13.26406473,142.61,142.57,18.64964886]
[1741154403996,13.26406473,142.59,142.56,7.9712]
[1741154404198,13.26406473,142.58,142.56,7.9712]
[1741154405520,13.26406473,142.59,142.56,7.9712]
[1741154406528,13.26406473,142.58,142.56,7.9712]
[1741154406715,13.26406473,142.57,142.55,0.033]
[1741154407017,13.26406473,142.56,142.55,0.033]
[1741154407230,13.54838787,142.56,142.55,0.033]
[1741154407398,0.28432314,142.55,142.54,0.033]
[1741154407600,13.54838787,142.55,142.54,0.0001]
[1741154407811,20.0,142.52,142.51,0.033]
[1741154408016,33.54838787,142.52,142.51,0.033]
[1741154408220,86.60464679,142.52,142.51,0.033]
[1741154409325,40.56488787,142.52,142.51,0.033]
[1741154409901,33.26406473,142.52,142.51,0.033]
[1741154410097,40.28056473,142.52,142.51,0.033]
[1741154410303,40.56488787,142.52,142.51,0.033]
[1741154411811,33.26406473,142.52,142.51,0.033]
[1741154413023,40.56488787,142.52,142.51,0.033]
[1741154414034,93.62114679,142.52,142.51,0.033]
[1741154414325,40.56488787,142.52,142.51,0.033]
[1741154414625,33.26406473,142.52,142.51,0.033]
[1741154415004,40.28056473,142.52,142.51,0.033]
[1741154416921,40.56488787,142.52,142.51,0.033]
[1741154421616,93.62114679,142.52,142.51,0.033]
[1741154425224,20.0,142.49,142.48,0.033]
[1741154425531,13.26406473,142.49,142.48,0.033]
[1741154426727,20.28206473,142.49,142.48,0.033]
[1741154428636,102.08166473,142.5,142.48,0.033]
[1741154428832,7.0155,142.54,142.48,13.29706473]
[1741154429034,20.27956473,142.54,142.5,18.64964886]
[1741154430637,102.07916473,142.55,142.5,31.91371359]
[1741154430941,88.8151,142.55,142.5,31.91371359]
[1741154431243,81.8,142.55,142.52,18.64964886]
[1741154431543,20.27876473,142.56,142.52,18.64964886]
[1741154432838,20.27876473,142.56,142.5,38.93121359]
[1741154435016,20.27876473,142.56,142.52,18.64964886]
[1741154437342,13.26406473,142.56,142.52,18.64964886]
[1741154437854,13.26406473,142.56,142.52,25.66604886]
[1741154438138,81.8,142.58,142.53,21.31276473]
[1741154438438,13.26406473,142.59,142.53,21.31276473]
[1741154439025,95.06406473,142.6,142.55,18.64964886]
[1741154439231,81.8,142.6,142.55,31.91371359]
[1741154439450,95.06406473,142.6,142.55,38.92851359]
[1741154439743,81.8,142.6,142.55,38.92851359]
[1741154440733,0.03,142.56,142.55,38.92851359]
[1741154441627,0.03,142.56,142.55,40.55761359]
[1741154442121,0.03,142.62,142.55,47.14221359]
[1741154442452,13.29406473,142.62,142.58,18.64964886]
[1741154442959,13.29406473,142.62,142.56,31.91371359]
[1741154444137,13.26406473,142.61,142.56,31.91371359]
[1741154444930,13.26406473,142.61,142.56,38.92811359]
[1741154445246,13.26406473,142.61,142.56,31.91371359]
[1741154445750,13.26406473,142.6,142.56,18.64964886]
[1741154445953,13.26406473,142.59,142.55,8.2137]
[1741154446165,20.27756473,142.59,142.55,8.2137]
[1741154446331,20.27756473,142.59,142.56,18.64964886]
[1741154446524,13.26406473,142.6,142.56,18.64964886]
[1741154447946,20.27676473,142.6,142.56,18.64964886]
[1741154448430,13.26406473,142.58,142.55,8.2137]
[1741154448745,13.26406473,142.57,142.55,8.2137]
[1741154449329,13.26406473,142.57,142.53,18.64964886]
[1741154449529,13.26406473,142.56,142.53,18.64964886]
[1741154450150,20.27816473,142.57,142.53,18.64964886]
[1741154452353,13.26406473,142.56,142.52,7.9619]
[1741154452580,13.26406473,142.55,142.52,7.9619]
[1741154452728,13.26406473,142.54,142.52,7.9619]
[1741154453046,13.26406473,142.53,142.49,1.7397]
[1741154453349,13.26406473,142.51,142.49,1.7397]
[1741154453534,20.28106473,142.51,142.49,1.7397]
[1741154453931,20.28106473,142.51,142.48,24.89784886]
[1741154454136,13.26406473,142.5,142.48,6.2482]
[1741154454345,13.26406473,142.5,142.48,0.033]
[1741154456449,13.26406473,142.51,142.48,0.033]
[1741154456657,102.08066473,142.52,142.48,0.033]
[1741154456945,81.8,142.52,142.48,18.68264886]
[1741154458062,13.26406473,142.53,142.48,18.68264886]
[1741154458366,13.26406473,142.52,142.48,0.033]
[1741154458543,20.28016473,142.53,142.48,0.033]
[1741154460178,13.26406473,142.52,142.48,0.033]
[1741154461767,20.28066473,142.52,142.48,0.033]
[1741154462073,13.26406473,142.51,142.48,0.033]
[1741154462850,13.26406473,142.5,142.48,0.033]
[1741154463745,20.28176473,142.5,142.48,0.033]
[1741154464171,13.26406473,142.49,142.48,0.033]
[1741154464372,13.54838787,142.49,142.48,0.033]
[1741154464673,20.28432314,142.46,142.45,0.033]
[1741154464877,33.54838787,142.46,142.45,0.033]
[1741154466073,58.11658787,142.46,142.41,5.75623953]
[1741154466280,13.54838787,142.42,142.41,5.75623953]
[1741154466579,21.07196392,142.42,142.41,5.75623953]
[1741154468176,28.09336392,142.42,142.41,5.75623953]
[1741154469085,20.78764078,142.42,142.41,5.75623953]
[1741154469387,109.60904078,142.42,142.41,5.75623953]
[1741154469554,109.89336392,142.42,142.41,5.75623953]
[1741154470664,102.58764078,142.42,142.41,5.75623953]
[1741154471095,109.60904078,142.42,142.41,5.75623953]
[1741154474980,28.09336392,142.42,142.41,5.75623953]
[1741154475186,0.28432314,142.38,142.36,0.033]
[1741154475389,20.78764078,142.37,142.36,0.033]
[1741154476584,28.09586392,142.37,142.36,0.033]
[1741154478155,0.28432314,142.36,142.35,0.033]
[1741154478361,21.07196392,142.36,142.35,0.033]
[1741154479776,20.78764078,142.36,142.35,0.033]
[1741154480683,28.09636392,142.36,142.35,0.033]
[1741154480891,28.09636392,142.36,142.33,0.033]
[1741154480892,20.28432314,142.34,142.33,0.033]
[1741154481067,21.07196392,142.34,142.33,0.033]
[1741154482402,28.09736392,142.34,142.33,0.033]
[1741154482984,21.07196392,142.34,142.33,0.033]
[1741154483490,7.025,142.35,142.33,0.033]
[1741154483491,20.78764078,142.35,142.33,0.033]
[1741154484983,20.78764078,142.34,142.33,0.033]
[1741154485172,41.8596047,142.34,142.31,0.033]
[1741154485487,61.8596047,142.32,142.31,0.033]
[1741154485784,41.07196392,142.32,142.31,0.033]
[1741154486201,61.8596047,142.32,142.31,0.033]
[1741154486677,21.07196392,142.28,142.27,0.033]
[1741154486894,28.10026392,142.28,142.27,0.033]
[1741154487773,20.78764078,142.28,142.27,0.033]
[1741154488589,27.81594078,142.28,142.27,0.033]
[1741154488967,20.78764078,142.28,142.27,0.033]
[1741154489670,20.78764078,142.27,142.24,18.64964886]
[1741154490267,7.028,142.29,142.24,18.64964886]
[1741154490588,20.78764078,142.28,142.24,18.64964886]
[1741154490979,102.58764078,142.3,142.24,25.67974886]
[1741154491287,102.58764078,142.3,142.24,46.46738964]
[1741154491587,20.78764078,142.29,142.24,18.64964886]
[1741154491993,20.78764078,142.29,142.24,25.67994886]
[1741154492166,20.78764078,142.29,142.24,18.64964886]
[1741154492579,20.78764078,142.27,142.24,18.64964886]
[1741154493086,102.58764078,142.26,142.23,7.6837]
[1741154493303,20.78764078,142.25,142.23,7.6837]
[1741154494086,20.78764078,142.25,142.23,6.0205]